bitfinex/quotes_ETHUSD_20251201
["timestamp","ask_amount","ask_price","bid_price","bid_amount"]
[1764630186551,0.5464,2810.4,2810.3,5.85303321]
[1764630187966,0.5484,2810.4,2810.3,5.85303321]
[1764630189156,0.002,2810.4,2810.3,7.04542732]
[1764630189461,0.0837,2810.4,2810.3,6.57862732]
[1764630189856,0.5484,2810.4,2810.3,6.57862732]
[1764630190887,0.5484,2810.4,2810.3,5.15803707]
[1764630191092,0.5484,2810.4,2810.3,5.72303707]
[1764630193800,0.5484,2810.4,2810.3,5.15803707]
[1764630193984,0.5484,2810.4,2810.3,0.4686]
[1764630195098,0.5484,2810.4,2809.4,3.55947889]
[1764630195273,0.0046,2810.3,2809.6,0.5484]
[1764630195475,0.4667,2810.4,2809.6,0.5484]
[1764630195770,0.4736,2810.3,2809.6,0.5484]
[1764630196002,0.4736,2810.3,2809.8,0.72559411]
[1764630196366,0.2733,2809.9,2809.8,0.72559411]
[1764630196721,0.2733,2809.9,2809.6,0.5484]
[1764630196993,0.2733,2809.9,2809.4,0.565]
[1764630196994,0.4747,2809.7,2809.4,0.565]
[1764630197171,0.081,2809.8,2809.4,0.565]
[1764630197375,0.4747,2809.5,2809.4,0.565]
[1764630197577,0.4747,2809.5,2808.8,1.06983337]
[1764630197806,0.6659,2809.9,2809.2,5.02353865]
[1764630198096,0.2678,2808.9,2808.8,5.44912915]
[1764630198296,0.2678,2808.9,2808.8,7.14522726]
[1764630198477,0.2678,2808.9,2808.8,6.73972326]
[1764630198875,0.2678,2808.9,2808.8,7.14522726]
[1764630199398,0.1874,2809.7,2808.9,1.13109811]
[1764630199599,0.4736,2809.8,2809.4,0.405504]
[1764630199766,0.4736,2809.8,2809.5,0.565]
[1764630200275,0.0756,2809.6,2809.5,4.52977014]
[1764630200801,0.4736,2810.2,2809.6,0.405504]
[1764630201195,0.4736,2810.2,2809.7,0.565]
[1764630201669,0.0756,2809.8,2809.7,0.970504]
[1764630202070,0.0756,2809.8,2809.7,4.52960283]
[1764630202271,0.0756,2809.8,2809.7,5.41937753]
[1764630203575,0.4756,2810.4,2809.8,0.405504]
[1764630203772,0.002,2810.4,2809.8,1.62549811]
[1764630205302,0.4727,2810.4,2810.3,0.14260783]
[1764630205671,0.4727,2810.4,2810.3,0.54811183]
[1764630206299,0.4727,2810.4,2810.3,4.10645079]
[1764630206501,0.4727,2810.4,2810.3,4.92944188]
[1764630207673,0.002,2810.4,2810.3,6.14943599]
[1764630207978,0.5472,2810.4,2810.3,0.96559892]
[1764630208176,0.5472,2810.4,2810.3,4.26594679]
[1764630208408,0.0776,2810.4,2810.3,4.26594679]
[1764630208590,0.002,2810.4,2810.3,5.16585079]
[1764630208884,0.5513,2810.4,2810.3,4.26594679]
[1764630209206,0.4767,2810.4,2810.3,4.67145079]
[1764630209575,0.4767,2810.4,2810.3,4.52884296]
[1764630210100,0.002,2810.4,2810.3,4.52884296]
[1764630210301,0.002,2810.4,2810.3,5.80447325]
[1764630210508,0.002,2810.4,2810.3,7.00006736]
[1764630211077,0.002,2810.4,2810.3,12.02360601]
[1764630211273,0.002,2810.4,2810.3,6.43506736]
[1764630211495,0.002,2810.4,2810.3,6.53006736]
[1764630211699,0.0562,2810.4,2810.3,4.68943707]
[1764630212004,0.5471,2810.4,2810.3,4.52884296]
[1764630212999,0.002,2810.4,2810.3,4.99574296]
[1764630217680,0.5471,2810.4,2809.9,3.55884551]
[1764630217880,0.4929,2810.4,2810.0,1.29059411]
[1764630218204,0.4929,2810.4,2810.1,0.405504]
[1764630218607,0.0585,2810.2,2810.1,0.405504]
[1764630219015,0.545,2810.2,2810.1,3.96409622]
[1764630219605,0.545,2810.2,2809.6,4.21720173]
[1764630219606,0.545,2810.2,2809.6,0.001]
[1764630219804,0.0049,2810.1,2809.8,0.72559411]
[1764630220022,0.0049,2810.1,2809.9,0.405504]
[1764630220185,0.4953,2810.1,2809.9,0.405504]
[1764630220385,0.4973,2810.4,2809.9,0.405504]
[1764630220710,0.002,2810.4,2810.0,0.47]
[1764630220903,0.002,2810.4,2810.3,3.96384296]
[1764630221789,0.002,2810.4,2810.3,4.89114296]
[1764630222322,0.5473,2810.4,2810.3,0.405504]
[1764630222529,0.5473,2810.4,2810.3,0.970504]
[1764630223199,0.5473,2810.4,2810.3,4.52884296]
[1764630224423,0.5473,2810.4,2810.3,3.96384296]
[1764630224588,0.5473,2810.4,2810.3,4.52884296]
[1764630225690,0.5473,2810.4,2810.3,3.96384296]
[1764630225922,0.5473,2810.4,2810.3,4.52884296]
[1764630226300,0.087,2810.4,2810.3,4.52884296]
[1764630228919,0.002,2810.4,2810.3,6.28197286]
[1764630229820,0.002,2810.4,2810.3,5.82157286]
[1764630230908,0.002,2810.4,2810.3,7.00756697]
[1764630232523,0.002,2810.4,2810.3,5.98216697]
[1764630232729,0.4871,2810.4,2809.9,0.88242622]
[1764630232922,0.4871,2810.4,2810.1,0.72559411]
[1764630232923,0.0662,2810.4,2810.1,0.72559411]
[1764630233130,0.4809,2810.2,2810.1,0.72559411]
[1764630234213,0.0662,2810.4,2810.2,0.405504]
[1764630234602,0.4809,2810.3,2810.2,0.405504]
[1764630235519,0.4809,2810.3,2810.2,4.68956369]
[1764630235826,0.5493,2810.3,2810.2,4.68956369]
[1764630236333,0.4809,2810.3,2810.2,4.68956369]
[1764630239421,0.4809,2810.3,2810.2,5.25456369]
[1764630239622,0.5493,2810.3,2810.2,0.565]
[1764630240332,4.10772641,2810.3,2809.9,0.001]
[1764630240530,0.4851,2810.0,2809.9,0.001]
[1764630241430,0.5493,2810.0,2809.9,0.001]
[1764630242815,0.4851,2810.0,2809.9,0.001]
[1764630243132,0.5493,2810.0,2809.9,0.001]
[1764630243528,0.4661,2810.4,2809.9,0.890504]
[1764630243716,0.002,2810.4,2810.1,0.405504]
[1764630244120,0.002,2810.4,2810.0,0.565]
[1764630244121,0.4851,2810.2,2810.0,0.565]
[1764630244322,0.4809,2810.1,2810.0,0.970504]
[1764630244718,0.002,2810.4,2810.1,0.405504]
[1764630244903,0.002,2810.4,2810.3,5.75775636]
[1764630245103,0.002,2810.4,2810.3,0.405504]
[1764630245304,0.087,2810.4,2810.2,0.405504]
[1764630247640,0.002,2810.4,2810.3,5.63383707]
[1764630247935,0.002,2810.4,2810.3,7.03989188]
[1764630249440,0.087,2810.4,2810.3,6.09549188]
[1764630250421,0.002,2810.4,2810.3,7.03989188]
[1764630250841,0.087,2810.4,2810.3,6.09549188]
[1764630251507,0.5473,2810.4,2810.3,0.405504]
[1764630251711,0.5473,2810.4,2810.3,0.970504]
[1764630252115,0.5473,2810.4,2810.3,4.52884296]
[1764630252637,0.5473,2810.4,2810.3,0.970504]
[1764630252840,0.5473,2810.4,2810.3,4.52884296]
[1764630255934,0.087,2810.4,2810.3,4.52884296]
[1764630256734,0.002,2810.4,2810.3,6.35173244]
[1764630260656,0.002,2810.4,2810.3,11.94557891]
[1764630261522,0.4845,2810.4,2810.3,5.57072655]
[1764630261874,0.4845,2810.4,2810.3,6.13572655]
[1764630262047,0.002,2810.4,2810.3,6.13572655]
[1764630262250,0.002,2810.4,2810.3,6.59122655]
[1764630264359,0.4845,2810.4,2810.3,4.28393307]
[1764630264653,0.4845,2810.4,2810.3,5.25443707]
[1764630266550,0.002,2810.4,2810.3,5.70993707]
[1764630267128,0.002,2810.4,2810.3,12.03983957]
[1764630268056,0.002,2810.4,2810.3,7.17158721]
[1764630269754,0.459,2810.4,2810.3,6.22998721]
[1764630270223,0.5511,2810.4,2810.3,5.25443707]
[1764630270428,0.5511,2810.4,2810.3,4.68943707]
[1764630270753,0.5511,2810.4,2810.3,5.25443707]
[1764630272165,0.459,2810.4,2810.3,5.25443707]
[1764630273061,0.5511,2810.4,2810.3,3.96384296]
[1764630273230,0.5511,2810.4,2810.2,0.565]
[1764630273428,0.0941,2810.4,2810.2,0.565]
[1764630273725,0.4533,2810.3,2810.2,0.565]
[1764630273943,0.4533,2810.3,2810.2,4.12346558]
[1764630274459,0.002,2810.4,2810.3,0.405504]
[1764630274961,0.077,2810.4,2810.3,0.405504]
[1764630276065,0.002,2810.4,2810.3,4.44314296]
[1764630276262,0.002,2810.4,2810.3,9.78829532]
[1764630276455,0.077,2810.4,2810.3,3.96384296]
[1764630276893,0.5472,2810.4,2810.3,3.96384296]
[1764630277067,0.077,2810.4,2810.3,3.96384296]
[1764630279441,0.002,2810.4,2810.3,5.32880323]
[1764630279960,0.002,2810.4,2810.3,5.80570323]
[1764630282339,0.002,2810.4,2810.3,5.32880323]
[1764630283136,0.5363,2810.4,2810.3,3.96384296]
[1764630283336,0.5363,2810.4,2810.3,4.52784296]
[1764630285270,0.5363,2810.4,2810.3,3.96384296]
[1764630285468,0.5363,2810.4,2810.3,4.52784296]
[1764630285769,0.002,2810.4,2810.3,5.00634296]
[1764630285943,0.002,2810.4,2810.3,11.17943663]
[1764630286444,0.002,2810.4,2810.3,5.81508427]
[1764630286640,0.0918,2810.4,2810.3,4.52784296]
[1764630287964,0.5474,2810.4,2810.3,4.52784296]
[1764630288155,0.5474,2810.4,2810.2,3.55839829]
[1764630288357,0.4576,2810.4,2810.3,0.969504]
[1764630288667,0.551,2810.4,2810.3,0.969504]
[1764630291570,0.551,2810.4,2810.3,4.52784296]
[1764630291746,0.0954,2810.4,2810.3,5.33656709]
[1764630293379,0.0954,2810.4,2810.3,1.77822813]
[1764630293578,0.0954,2810.4,2810.3,4.52784296]
[1764630294085,0.002,2810.4,2810.3,5.00734296]
[1764630294378,0.5475,2810.4,2810.3,4.52884296]
[1764630295077,0.5475,2810.4,2810.3,0.565]
[1764630296086,0.002,2810.4,2810.3,4.12333896]
[1764630297206,0.0918,2810.4,2810.3,4.84893307]
[1764630298206,0.5474,2810.4,2810.3,1.29059411]
[1764630300216,0.5474,2810.4,2810.3,0.72659411]
[1764630300401,0.5474,2810.4,2810.3,0.001]
[1764630300719,0.5474,2810.4,2810.3,1.20509411]
[1764630300720,0.002,2810.4,2810.3,1.20509411]
[1764630300884,0.5474,2810.4,2810.3,0.001]
[1764630301204,0.0918,2810.4,2810.3,4.28493307]
[1764630301684,0.5474,2810.4,2810.3,4.28493307]
[1764630301897,0.0918,2810.4,2810.3,4.28493307]
[1764630302081,0.5474,2810.4,2810.3,0.72659411]
[1764630302589,0.0954,2810.4,2810.3,4.28493307]
[1764630303298,0.5474,2810.4,2810.3,0.72659411]
[1764630303696,0.5474,2810.4,2810.3,1.29059411]
[1764630303894,0.5474,2810.4,2810.3,0.001]
[1764630304096,4.10561235,2810.4,2810.3,0.001]
[1764630304783,4.87237381,2810.4,2810.3,0.001]
[1764630311916,11.28500785,2810.4,2810.3,0.001]
[1764630312096,5.59796792,2810.4,2810.3,0.001]
[1764630318519,0.002,2810.4,2810.3,0.001]
[1764630318811,0.002,2810.4,2810.3,0.4865]
[1764630319009,0.064,2810.4,2810.3,0.001]
[1764630319183,3.62221235,2810.4,2810.3,0.001]
[1764630319388,4.87203977,2810.4,2810.3,0.001]
[1764630320715,0.064,2810.4,2810.3,0.001]
[1764630321613,0.002,2810.4,2810.3,0.9769]
[1764630321814,0.002,2810.4,2810.3,0.4865]
[1764630322012,0.064,2810.4,2810.3,0.001]
[1764630323592,5.11452995,2810.4,2810.3,0.001]
[1764630323788,5.59762995,2810.4,2810.3,0.001]
[1764630327714,5.11452995,2810.4,2810.3,0.001]
[1764630328083,5.59762995,2810.4,2810.3,0.001]
[1764630330316,5.69733405,2810.4,2810.3,0.001]
[1764630330519,5.59762995,2810.4,2810.3,0.001]
[1764630330694,5.59229188,2810.4,2810.3,0.001]
[1764630334312,5.10919188,2810.4,2810.3,0.001]
[1764630334505,11.15872771,2810.4,2810.3,0.001]
[1764630338301,11.52271746,2810.4,2810.3,0.001]
[1764630339526,0.405504,2810.3,2810.1,0.001]
[1764630339825,0.405504,2810.3,2810.0,0.001]
[1764630339826,5.60458786,2810.1,2810.0,0.001]
[1764630340127,7.03462369,2810.1,2810.0,0.001]
[1764630340516,10.59321591,2810.1,2810.0,0.001]
[1764630341199,10.22922616,2810.1,2810.0,0.001]
[1764630341405,12.78208292,2810.1,2810.0,0.001]
[1764630341605,12.41809317,2810.1,2810.0,0.001]
[1764630341831,12.78208292,2810.1,2810.0,0.001]
[1764630343121,19.23208292,2810.1,2810.0,0.001]
[1764630343431,0.0997041,2809.8,2809.1,0.001]
[1764630343726,12.90733404,2809.8,2809.1,0.001]
[1764630343931,13.38303404,2809.8,2809.1,0.001]
[1764630344927,16.9420062,2809.8,2809.1,0.001]
[1764630347703,0.72559411,2809.7,2809.1,0.001]
[1764630347916,3.8244303,2809.7,2809.1,0.001]
[1764630348701,0.405504,2809.6,2809.1,0.001]
[1764630348903,0.36398975,2809.2,2809.1,0.001]
[1764630349121,13.17131969,2809.2,2809.1,0.001]
[1764630349432,14.96415166,2809.2,2809.1,0.001]
[1764630349741,18.52388396,2809.2,2809.1,0.001]
[1764630353148,17.48318396,2809.2,2809.1,0.001]
[1764630353320,12.61745838,2809.2,2809.1,0.4651]
[1764630353849,12.61745838,2809.2,2809.1,0.9303]
[1764630354347,17.63979421,2809.2,2809.1,0.4651]
[1764630354909,18.07408396,2809.2,2809.1,0.001]
[1764630355247,17.71009421,2809.2,2809.1,0.001]
[1764630360678,17.63979421,2809.2,2809.1,0.4651]
[1764630362543,12.61745838,2809.2,2809.1,0.6475]
[1764630362737,11.30032641,2809.2,2809.1,1.1127]
[1764630363138,16.17562537,2809.2,2809.1,1.1127]
[1764630363339,11.30032641,2809.2,2809.1,1.1127]
[1764630363544,7.12125012,2809.3,2809.1,1.1127]
[1764630363724,3.56160559,2809.3,2809.2,0.9293]
[1764630363920,12.7086585,2809.3,2809.1,0.001]
[1764630365148,9.14901397,2809.3,2809.2,0.4641]
[1764630366023,12.7822585,2809.3,2809.1,0.001]
[1764630366255,7.78426778,2809.2,2809.1,0.001]
[1764630366424,0.76949375,2808.9,2808.8,0.001]
[1764630366625,0.405504,2808.7,2807.9,0.001]
[1764630366924,0.36398975,2808.3,2807.9,0.001]
[1764630367253,5.60619307,2808.0,2807.9,0.001]
[1764630367458,6.17119307,2808.0,2807.9,0.001]
[1764630369148,9.73244663,2808.0,2807.9,0.001]
[1764630369324,9.73244663,2808.0,2807.9,0.4651]
[1764630369950,9.73244663,2808.0,2807.9,0.001]
[1764630370121,11.06180387,2808.0,2807.9,0.001]
[1764630370323,15.93710283,2808.0,2807.9,0.001]
[1764630370566,16.77679258,2808.0,2807.9,0.001]
[1764630370772,10.84018178,2807.7,2807.6,0.001]
[1764630370941,1.08958386,2807.6,2807.4,0.001]
[1764630371145,3.22020204,2807.6,2807.4,0.001]
[1764630371342,6.78196297,2807.6,2807.4,0.001]
[1764630372476,11.65726193,2807.6,2807.4,0.001]
[1764630372849,0.36398975,2807.4,2807.3,0.001]
[1764630373177,10.11458767,2807.2,2806.6,0.001]
[1764630373352,14.30915612,2807.2,2806.6,0.001]
[1764630373674,14.76735612,2807.2,2806.6,0.001]
[1764630374376,15.49295023,2807.2,2806.6,0.001]
[1764630374573,17.39845956,2807.2,2806.6,0.001]
[1764630375070,17.39845956,2807.2,2806.6,0.4821]
[1764630375071,16.94025956,2807.2,2806.6,0.4821]
[1764630375448,16.57626981,2807.2,2806.6,0.4821]
[1764630377250,16.94025956,2807.2,2806.6,0.4821]
[1764630377449,17.39845956,2807.2,2806.6,0.4821]
[1764630377780,17.03446981,2807.2,2806.6,0.4821]
[1764630377943,17.39845956,2807.2,2806.6,0.4821]
[1764630378445,16.94025956,2807.2,2806.8,0.4811]
[1764630378958,16.57626981,2807.2,2806.8,0.4811]
[1764630379278,16.94025956,2807.2,2806.8,0.4811]
[1764630380670,16.94025956,2807.2,2806.8,0.4821]
[1764630381243,6.19337189,2807.2,2807.1,0.6392]
[1764630381449,4.28786256,2807.2,2807.1,1.1203]
[1764630382573,9.70856152,2807.2,2807.1,0.001]
[1764630382759,10.07255127,2807.2,2807.1,0.001]
[1764630383072,11.9800506,2807.2,2807.1,0.001]
[1764630385352,11.5255506,2807.2,2807.1,0.001]
[1764630389293,11.16156085,2807.2,2807.1,0.001]
[1764630389474,11.5255506,2807.2,2807.1,0.001]
[1764630389783,6.76036189,2807.2,2807.1,0.4546]
[1764630390472,11.63566085,2807.2,2807.1,0.4546]
[1764630390846,6.76036189,2807.2,2807.1,0.4546]
[1764630391288,11.63566085,2807.2,2807.1,0.4546]
[1764630391454,12.0905506,2807.2,2807.1,0.001]
[1764630391869,7.21525164,2807.2,2807.1,0.001]
[1764630392070,11.63566085,2807.2,2807.1,0.4719]
[1764630392282,6.76036189,2807.2,2807.1,0.4719]
[1764630393170,4.28786256,2807.2,2807.1,1.1503]
[1764630393374,3.56226845,2807.2,2807.1,1.1503]
[1764630393555,8.43756741,2807.2,2807.1,1.1503]
[1764630393877,8.43756741,2807.2,2807.1,0.001]
[1764630394076,10.64006835,2807.2,2807.1,0.001]
[1764630395088,5.76476939,2807.2,2807.1,0.001]
[1764630395487,5.30626939,2807.2,2807.1,0.4719]
[1764630396397,11.72965221,2807.2,2807.1,0.001]
[1764630396796,6.85435325,2807.2,2807.1,0.001]
[1764630397031,11.36566246,2807.2,2807.1,0.001]
[1764630397798,11.45626246,2807.2,2807.1,0.001]
[1764630397988,11.82025221,2807.2,2807.1,0.001]
[1764630399786,11.72965221,2807.2,2807.1,0.001]
[1764630400810,6.0318635,2807.2,2807.1,1.1503]
[1764630400996,0.002,2807.3,2807.1,1.1503]
[1764630401196,4.28977827,2807.3,2807.2,0.953]
[1764630402492,0.002,2807.3,2807.2,0.953]
[1764630404535,0.002,2807.6,2807.2,8.4830409]
[1764630404814,0.002,2807.6,2807.5,0.4737]
[1764630405174,0.002,2807.6,2807.5,0.9706]
[1764630405979,0.002,2807.6,2807.5,1.5551899]
[1764630406310,0.002,2807.6,2807.5,0.9706]
[1764630409418,0.002,2807.6,2807.5,4.5324878]
[1764630410539,0.002,2807.6,2807.5,0.9706]
[1764630413300,0.002,2807.6,2807.5,4.5324878]
[1764630413699,0.002,2807.6,2807.5,0.9706]
[1764630413991,0.002,2807.6,2807.5,1.42385621]
[1764630417831,0.0717,2807.6,2807.3,0.001]
[1764630418930,0.002,2807.6,2807.5,0.4737]
[1764630419435,0.002,2807.6,2807.5,0.9706]
[1764630423743,0.002,2807.6,2807.5,0.4737]
[1764630426042,1.33738623,2807.6,2807.3,0.001]
[1764630426634,0.85678623,2807.6,2807.3,0.001]
[1764630427749,3.5618878,2807.5,2807.3,0.4979]
[1764630427949,0.002,2807.6,2807.5,0.4737]
[1764630428153,3.56376093,2807.6,2807.5,0.4737]
[1764630428351,3.56376093,2807.6,2807.5,0.9706]
[1764630428556,0.002,2807.6,2807.5,0.9706]
[1764630430714,0.002,2807.6,2807.5,0.4737]
[1764630433354,2.04988034,2807.6,2807.3,0.001]
[1764630433512,0.0178,2807.4,2807.3,0.001]
[1764630434415,1.51268034,2807.6,2807.3,0.4786]
[1764630434614,0.92009485,2807.5,2807.3,0.4786]
[1764630434847,3.56201467,2807.4,2807.3,0.4786]
[1764630437121,3.64881467,2807.4,2807.3,0.001]
[1764630437319,4.83810878,2807.4,2807.3,0.001]
[1764630437546,5.92138669,2807.4,2807.3,0.001]
[1764630443348,13.39572489,2807.4,2807.3,0.001]
[1764630446967,19.84572489,2807.4,2807.3,0.001]
[1764630448662,19.84772489,2807.4,2807.3,0.001]
[1764630448962,19.99055066,2807.4,2807.3,0.001]
[1764630449445,20.39605466,2807.4,2807.3,0.001]
[1764630450766,18.32197987,2807.4,2807.3,0.001]
[1764630455873,18.32197987,2807.4,2807.1,0.001]
[1764630455874,21.88399454,2807.4,2807.1,0.001]
[1764630456045,21.88399454,2807.4,2806.8,0.001]
[1764630456046,6.12585752,2807.1,2806.8,0.001]
[1764630456241,6.12585752,2807.1,2805.4,0.4506]
[1764630456242,0.0652,2806.7,2805.4,0.4506]
[1764630456460,5.03627366,2805.6,2805.4,0.4506]
[1764630456654,5.60127366,2805.6,2805.3,0.6423]
[1764630456870,1.29059411,2805.6,2805.5,0.4786]
[1764630457271,0.565,2805.7,2805.5,0.9292]
[1764630457470,0.565,2805.7,2805.5,0.4506]
[1764630457643,0.565,2805.7,2805.6,0.9292]
[1764630459278,4.85476704,2805.7,2805.6,0.9292]
[1764630459769,4.12917293,2805.7,2805.6,0.9292]
[1764630459950,3.56417293,2805.7,2805.6,0.9292]
[1764630460950,4.12909845,2805.8,2805.6,0.9292]
[1764630461255,4.85469256,2805.8,2805.7,0.9292]
[1764630461587,4.85469256,2805.8,2805.7,0.4786]
[1764630461794,5.34016182,2805.8,2805.7,0.4786]
[1764630461946,8.97546027,2805.8,2805.3,0.1917]
[1764630462149,8.97546027,2805.8,2805.4,0.473]
[1764630462358,0.72559411,2805.5,2805.3,0.1917]
[1764630462577,0.565,2805.4,2805.3,0.1917]
[1764630462756,0.565,2805.4,2804.8,0.1824]
[1764630462946,0.565,2805.4,2804.9,0.473]
[1764630463368,7.12936226,2805.3,2804.9,0.473]
[1764630463765,3.56468113,2805.3,2805.2,0.4832]
[1764630465981,3.56468113,2805.3,2805.2,0.9562]
[1764630467961,3.56468113,2805.3,2805.2,0.4832]
[1764630468166,7.97134559,2805.3,2805.1,0.001]
[1764630468773,4.40666446,2805.3,2805.2,0.4832]
[1764630469274,8.14224969,2805.3,2805.1,0.001]
[1764630469484,8.04254559,2805.3,2805.1,0.001]
[1764630469874,4.40666446,2805.3,2805.2,0.4832]
[1764630472891,8.04654559,2805.3,2805.1,0.001]
[1764630473095,1.66194867,2805.2,2805.1,0.001]
[1764630473268,2.49593842,2805.2,2805.1,0.001]
[1764630473604,2.67833842,2805.2,2805.1,0.001]
[1764630473980,9.12833842,2805.2,2805.1,0.001]
[1764630474861,12.69314663,2805.2,2805.1,0.001]
[1764630477002,12.69314663,2805.2,2805.1,0.001]
[1764630477501,13.04964663,2805.2,2805.1,0.001]
[1764630477686,12.69314663,2805.2,2805.1,0.001]
[1764630480901,11.78395688,2805.2,2805.1,0.4842]
[1764630481077,12.34895688,2805.2,2805.1,0.4842]
[1764630481884,11.96554663,2805.2,2805.1,0.6658]
[1764630482220,0.565,2805.6,2805.1,1.1388]
[1764630482503,1.29059411,2805.6,2805.2,0.473]
[1764630482686,1.29059411,2805.6,2805.5,0.4832]
[1764630483177,1.29059411,2805.6,2805.5,0.9562]
[1764630483399,3.56374891,2806.1,2805.5,0.9562]
[1764630483605,0.565,2805.9,2805.6,0.473]
[1764630484022,0.565,2805.9,2805.8,0.4832]
[1764630484214,0.565,2805.9,2805.8,0.9562]
[1764630485300,4.12891888,2805.9,2805.8,0.9562]
[1764630487514,4.85451299,2805.9,2805.8,0.9562]
[1764630488726,1.29059411,2805.9,2805.8,0.9562]
[1764630489127,4.85451299,2805.9,2805.8,0.9562]
[1764630492336,0.565,2806.2,2805.8,0.9562]
[1764630492636,0.565,2806.2,2805.9,0.4912]
[1764630492836,0.565,2806.2,2806.1,0.6437]
[1764630493134,0.565,2806.4,2806.1,0.6437]
[1764630493303,1.29059411,2806.4,2806.3,0.4547]
[1764630493707,1.29059411,2806.4,2806.3,0.9459]
[1764630494038,4.28887803,2806.4,2806.3,0.4547]
[1764630494224,4.13006519,2806.6,2806.3,0.9459]
[1764630494538,4.8556593,2806.6,2806.5,0.4547]
[1764630494837,4.2906593,2806.6,2806.5,0.4547]
[1764630495040,4.8556593,2806.6,2806.5,0.9459]
[1764630496163,0.002,2806.6,2806.5,0.9459]
[1764630496644,0.002,2806.6,2806.5,4.65185162]
[1764630496845,0.002,2806.6,2806.5,1.91021989]
[1764630497030,0.002,2806.6,2806.5,0.9459]
[1764630503457,0.002,2806.6,2806.5,0.4547]
[1764630504230,0.002,2806.6,2806.5,0.9459]
[1764630505328,0.002,2807.2,2806.8,0.4547]
[1764630505529,0.002,2807.2,2807.1,0.6437]
[1764630505530,3.56430035,2807.2,2807.1,0.6437]
[1764630505741,3.56430035,2807.2,2806.0,0.189]
[1764630505742,0.0747,2806.6,2806.0,0.189]
[1764630506044,0.0047,2806.2,2805.8,0.189]
[1764630506245,0.565,2806.1,2805.8,0.189]
[1764630506449,0.565,2806.1,2805.8,0.6802]
[1764630506615,0.1901,2806.6,2806.0,0.4547]
[1764630506815,0.565,2806.5,2806.1,0.4547]
[1764630507633,7.12656784,2806.4,2806.1,0.4547]
[1764630508650,8.27103793,2806.4,2806.1,0.4547]
[1764630511239,4.28887803,2806.4,2806.3,0.4585]
[1764630511444,4.85387803,2806.4,2806.3,0.4585]
[1764630511755,4.85387803,2806.4,2806.0,0.4579]
[1764630511953,8.41716195,2806.4,2806.0,0.4579]
[1764630512334,4.88525438,2806.2,2806.0,0.4579]
[1764630512534,3.56366487,2806.1,2805.8,0.189]
[1764630512736,4.88525438,2806.0,2805.8,0.6469]
[1764630513123,4.88525438,2806.0,2805.9,0.9164]
[1764630514354,3.56366487,2806.1,2805.9,0.9164]
[1764630514558,3.56341089,2806.3,2806.0,0.4585]
[1764630515244,3.56341089,2806.3,2806.0,0.9164]
[1764630515440,7.12682178,2806.3,2806.0,0.9164]
[1764630516835,7.12682178,2806.3,2806.0,0.4585]
[1764630518535,3.56341089,2806.3,2806.2,0.4585]
[1764630518938,4.12841089,2806.3,2806.2,0.9164]
[1764630519253,4.12841089,2806.3,2806.2,0.4585]
[1764630519562,9.07895149,2806.3,2806.0,0.001]
[1764630519725,8.62355149,2806.3,2806.0,0.001]
[1764630519929,0.0046,2806.1,2806.0,0.001]
[1764630522352,8.15092178,2806.3,2806.0,0.001]
[1764630524845,0.09,2806.1,2806.0,0.001]
[1764630525245,0.5454,2806.1,2806.0,0.001]
[1764630526665,4.83465898,2806.1,2806.0,0.001]
[1764630526867,5.19864873,2806.1,2806.0,0.001]
[1764630527164,4.83465898,2806.1,2806.0,0.001]
[1764630527366,6.52226824,2806.1,2806.0,0.001]
[1764630528844,0.72559411,2806.5,2806.0,0.9376]
[1764630529044,0.565,2806.4,2806.1,0.6594]
[1764630529257,0.565,2806.4,2806.1,1.1166]
[1764630529455,0.565,2806.4,2806.3,0.4794]
[1764630531848,4.85387803,2806.4,2806.3,0.4794]
[1764630534369,9.73893573,2806.4,2806.3,0.4794]
[1764630534878,13.30221965,2806.4,2806.1,0.6372]
[1764630535077,4.8850577,2806.2,2806.0,0.001]
[1764630535377,0.0498,2806.1,2806.0,0.001]
[1764630536280,3.61346487,2806.1,2806.0,0.001]
[1764630536574,4.08476487,2806.1,2806.0,0.001]
[1764630537077,3.61346487,2806.1,2806.0,0.001]
[1764630537278,3.56366487,2806.1,2806.0,0.4804]
[1764630537853,3.56366487,2806.1,2806.0,0.9376]
[1764630538976,8.44863007,2806.2,2806.0,0.9376]
[1764630539178,0.72559411,2806.6,2806.1,1.1166]
[1764630539393,0.565,2806.4,2806.1,0.6372]
[1764630539554,0.565,2806.4,2806.2,0.4572]
[1764630539754,0.565,2806.4,2806.3,0.4794]
[1764630540254,0.565,2806.4,2806.3,0.9366]
[1764630541551,4.12828392,2806.4,2806.3,0.9366]
[1764630541787,8.61447218,2806.4,2806.0,0.001]
[1764630542080,4.8850577,2806.1,2806.0,0.4582]
[1764630542466,4.8850577,2806.1,2806.0,0.9376]
[1764630542666,4.8850577,2806.3,2806.0,0.9376]
[1764630542866,4.8850577,2806.3,2806.1,0.6372]
[1764630543075,4.8850577,2806.3,2806.2,0.4794]
[1764630543453,4.9700577,2806.3,2806.0,0.001]
[1764630543781,4.8850577,2806.1,2806.0,0.001]
[1764630544152,4.8850577,2806.1,2806.0,0.4804]
[1764630544357,7.12707576,2806.2,2806.0,0.4804]
[1764630548091,3.56353788,2806.2,2806.1,0.4794]
[1764630548509,7.67567576,2806.2,2806.0,0.001]
[1764630548788,0.73029411,2806.1,2806.0,0.001]
[1764630549172,1.20159411,2806.1,2806.0,0.001]
[1764630549682,0.73029411,2806.1,2806.0,0.001]
[1764630549882,2.58703253,2806.1,2806.0,0.001]
[1764630550189,6.1506974,2806.1,2806.0,0.001]